Cogmind - Beta 14 @@@ ROGUE MODE // 2025.01.13 @ 22:10:50 Player: Derk Result: Destroyed by UG-NEL(z) with Makeshift Shrapnel Gun Performance ------------- Evolutions (4) 2000 Regions Visited (10) 2000 Robots Destroyed (80) 400 Value Destroyed (2032) 2032 Prototype IDs (21) 420 Alien Tech Used (0) 0 Bonus (2008) 2008 TOTAL SCORE: 8860 Bonus ------- High Alert Combat Kills 50 Follower Combat Kills 1466 Registered with UFD 300 Met Imprinter 300 Friendly Fire -108 Cogmind --------- Core Integrity 0/850 Matter 260/300 Energy 90/100 System Corruption 14% Temperature Cool (87) Movement Core (1450) Ox28 Location -6/Zion Parts ------- > --- POWER (1) -------- (None) > --- PROPULSION (5) --- Makeshift Leg > --- UTILITY (7) ------ Huge Storage Unit Experimental Optical Array > --- WEAPON (2) ------- Makeshift Sword Companion Sword > --- INVENTORY (25) --- Light Nuclear Core Light Nuclear Core Makeshift Leg Matter Compressor (250) Experimental Terrain Scan Processor 0b10 Decoder Chip [Scout] Precision Matter Filter Experimental Focal Shield Experimental Thermal Shield Experimental Hacking Suite High-powered Tractor Beam Hacking Drone Bay (1/1) Minigun CPS Tube (2) CPS Tube (1) Gravity Flail Makeshift Spear DRS Beacon (Ready) Peak State ------------ > --- POWER ------------ Fission Core > --- PROPULSION ------- Improved Medium Treads Improved Medium Treads Overtuned Scrapsphere Overtuned Scrapsphere Overtuned Scrapsphere > --- UTILITY ---------- Scrap Suit Huge Storage Unit Machine Analyzer Spectral Analyzer Medium Armor Plating Experimental Focal Shield > --- WEAPON ----------- Overtuned Barrage Gun Gravity Flail > --- INVENTORY -------- Improved Deuterium Engine Spiked Treads Scrap Suit Matter Compressor Improved Trap Scanner Experimental Terrain Scan Processor Makeshift Salvage Targeting Computer Precision Matter Filter Energy Filter Light Armor Plating Hardened Light Armor Plating Improved Light Armor Plating Improved Medium Armor Plating Experimental Thermal Shield Neutron Cannon Overtuned Barrage Gun Overtuned Barrage Gun Mini Grenade Launcher CPS Tube CPS Tube Blade Saw Companion Sword Vortex Trap DRS Beacon [Rating: 77] Favorites ----------- Power Deuterium Engine Engine Deuterium Engine Power Core Fission Core Propulsion Overtuned Scrapsphere Treads Improved Treads Leg Makeshift Leg Wheel Overtuned Scrapsphere Utility Huge Storage Unit Device Scrap Suit Storage Huge Storage Unit Processor Machine Analyzer Protection Medium Armor Plating Weapon Companion Sword Energy Gun Particle Gun Energy Cannon Light EM Pulse Cannon Ballistic Gun Overtuned Barrage Gun Ballistic Cannon Heavy Flak Cannon Launcher Mini Grenade Launcher Special Weapon CPS Tube Impact Weapon Heavy Mace Slashing Weapon Companion Sword Piercing Weapon Makeshift Spear Build | -11 -10 -10 -9 -9 -9 -9 -6 -6 -6 -6 ------- Run | Yrd Mat Min Mat Sto Rec Scr Fac Low Low Zio Slots Evolved 8 | . . . 2 . . . 6 . . . Power . | . . . . . . . . . . . Propulsion 3 | . . . 1 . . . 2 . . . Utility 5 | . . . 1 . . . 4 . . . Weapon . | . . . . . . . . . . . Parts Attached 145 | 7 6 10 9 10 . 11 39 8 2 43 Power 12 | 1 1 . 1 . . 1 3 . . 5 Engine 11 | 1 1 . 1 . . 1 2 . . 5 Core 1 | . . . . . . . 1 . . . Reactor . | . . . . . . . . . . . Propulsion 46 | 2 2 5 4 2 . 7 8 1 . 15 Treads 22 | 2 . 4 3 2 . 4 4 . . 3 Leg 10 | . . . . . . . . . . 10 Wheel 14 | . 2 1 1 . . 3 4 1 . 2 Hover . | . . . . . . . . . . . Flight . | . . . . . . . . . . . Utility 41 | 2 2 1 3 3 . 1 13 4 1 11 Device 24 | 1 1 . 2 . . . 8 3 1 8 Storage 2 | 1 1 . . . . . . . . . Processor 5 | . . . . 1 . . 2 . . 2 Hackware . | . . . . . . . . . . . Protection 10 | . . 1 1 2 . 1 3 1 . 1 Artifact . | . . . . . . . . . . . Weapon 46 | 2 1 4 1 5 . 2 15 3 1 12 Energy Gun 4 | 1 . 1 . . . . . . . 2 Energy Cannon 3 | . . . 1 . . . 1 . . 1 Ballistic Gun 19 | 1 1 2 . 2 . . 7 2 . 4 Ballistic Cannon 1 | . . . . . . . 1 . . . Launcher 4 | . . 1 . . . . 1 1 . 1 Special Weapon 2 | . . . . . . 1 . . . 1 Impact Weapon 3 | . . . . 2 . . 1 . . . Slashing Weapon 10 | . . . . 1 . 1 4 . 1 3 Piercing Weapon . | . . . . . . . . . . . Special Melee Weapon . | . . . . . . . . . . . Unidentified Prototypes 9 | . . . . . . 1 5 . . 3 Corrupted Parts 1 | . . . . . . 1 . . . . System Corruption 1 | . . . . . . 1 . . . . Parts Lost 43 | . . 7 3 2 . . 3 . . 28 Power 6 | . . 1 . . . . . . . 5 Propulsion 15 | . . 3 1 . . . 1 . . 10 Utility 15 | . . 1 2 2 . . 2 . . 8 Weapon 7 | . . 2 . . . . . . . 5 Highest Loss Streak 8 | . . 7 2 1 . . 1 . . 8 To Critical Strikes . | . . . . . . . . . . . Average Slot Usage (%) 94 | . 100 83 95 99 100 98 93 91 86 79 Engine 7 | . 14 . 7 11 11 11 3 . . 1 Core 1 | . . . . . . . 2 6 6 3 Treads 17 | . 21 12 22 23 33 24 12 11 6 4 Wheel 12 | . 6 12 11 9 . 8 20 20 20 14 Device 6 | . 14 1 10 . . . 12 13 13 9 Storage 9 | . 14 14 11 11 11 11 6 6 6 6 Processor 4 | . . . . 5 . . 12 6 6 12 Protection 14 | . . 12 10 15 22 22 7 11 13 8 Ballistic Gun 5 | . 25 15 11 9 . . 5 8 8 4 Impact Weapon 3 | . . . . 9 11 5 . . . . Slashing Weapon 8 | . . . . 2 11 15 4 3 3 6 Peak Build Rating 77 | 8 9 14 19 21 21 30 77 71 68 77 Average Rating 38 | 5 7 9 17 19 21 25 60 68 66 65 On Entrance 28 | . 8 9 14 19 21 21 23 70 65 68 Naked Turns . | . . . . . . . . . . . Heaviest Build 117 | 15 89 93 102 102 98 105 114 116 117 117 Greatest Support 80 | 40 40 20 16 66 66 69 36 44 44 80 Greatest Overweight (x) 13 | . 4 5 6 6 1 2 4 4 2 13 Average Overweight (x) 2 | . 1 4 5 4 1 1 3 3 2 2 Largest Inventory Capacity 25 | 8 25 25 25 25 25 25 25 25 25 25 Average Capacity 23 | 7 12 25 25 25 25 25 25 25 25 25 Most Carried 25 | 8 17 17 24 23 25 25 25 25 25 25 Average Carried 21 | 5 9 12 19 21 22 23 22 24 25 21 Final Capacity 25 | 8 25 25 25 25 25 25 25 25 25 25 Final Carried 25 | 8 17 16 21 22 25 24 23 25 25 18 Class Distribution -------------------- 48% | Mutant 27% | Scavenger-Scrapper 19% | Derelict-Mutant 4% | Scavenger-Mutant Dominant Class ---------------- Mutant | -10/Materials Mutant | -10/Mines Mutant | -9/Materials Mutant | -9/Storage Mutant | -9/Recycling Mutant | -9/Scraptown Derelict-Mutant | -6/Factory Scavenger-Scrapper | -6/Lower Caves Scavenger-Scrapper | -6/Lower Caves Scavenger-Scrapper | -6/Zion Resources | -11 -10 -10 -9 -9 -9 -9 -6 -6 -6 -6 ----------- Run | Yrd Mat Min Mat Sto Rec Scr Fac Low Low Zio Matter Collected 3200 | 294 188 18 425 230 20 340 1005 201 20 459 Remotely 154 | . . . . . . . . . . 154 Salvage Created 3516 | 111 311 62 498 397 71 . 1298 64 . 704 Parts 188 | 9 14 . 29 21 2 . 61 1 . 51 Haulers Intercepted 3 | . 1 . 1 . . . 1 . . . Recyclers Shooed 1 | . . . . . . . 1 . . . Parts Field Recycled . | . . . . . . . . . . . Retrieved Matter . | . . . . . . . . . . . Parts Self-Destructed 6 | . . . . . . . . 6 . . Prevented . | . . . . . . . . . . . Kills | -11 -10 -10 -9 -9 -9 -9 -6 -6 -6 -6 ------- Run | Yrd Mat Min Mat Sto Rec Scr Fac Low Low Zio Combat Hostiles Destroyed 52 | . 8 16 5 7 . . 10 1 . 5 Melee 2 | . . . . 1 . . 1 . . . Guns 31 | . 8 5 4 2 . . 8 1 . 3 Cannons 2 | . . . 1 . . . 1 . . . AOE 13 | . . 11 . . . . . . . 2 Classes Destroyed 19 | 2 3 1 4 . . . 5 . . 4 Worker 2 | . . . 1 . . . 1 . . . Builder 4 | . . . . . . . 4 . . . Tunneler 3 | 2 . . 1 . . . . . . . Hauler 3 | . 1 . 1 . . . 1 . . . Recycler 8 | 1 . . 1 1 1 . 4 . . . Watcher 4 | . . . 2 . . . 2 . . . Swarmer 3 | . 3 . . . . . . . . . Grunt 13 | . 5 . 2 2 . . 3 1 . . Brawler 1 | . . . 1 . . . . . . . Protector 1 | . . . . . . . 1 . . . Sentry 10 | . . . 2 5 . . 3 . . . Demolisher 1 | . . . . . . . 1 . . . Specialist 1 | . . . . . . . 1 . . . Hunter 1 | . . . . . . . 1 . . . Zionite 22 | . . . . . . . . . . 22 Tinkerer 2 | . . . . . . . . . . 2 Assembled 16 | . . 16 . . . . . . . . Savage 1 | . . . . . . . . . . 1 Wizard 1 | . . . . . . . . . . 1 Mutant 3 | . . . . . . . . . . 3 Best Kill Streak 15 | 3 4 15 4 3 1 . 4 1 . 7 Combat Bots Only 15 | . 4 15 3 2 . . 4 1 . 3 Max Kills in Single Turn 5 | 1 1 5 1 1 1 . 1 1 . 2 Gunslinging 1 | . . 1 . . . . . . . . Exploded 5 | . . 5 . . . . . . . 2 Melee 1 | . . . . 1 . . 1 . . . Uniques/NPCs Destroyed . | . . . . . . . . . . . Combat | -11 -10 -10 -9 -9 -9 -9 -6 -6 -6 -6 -------- Run | Yrd Mat Min Mat Sto Rec Scr Fac Low Low Zio Hostile Shots Fired 634 | . 33 69 23 38 . . 134 16 . 321 Missed 184 | . 9 12 4 7 . . 43 6 . 103 Damage Taken 7881 | . 245 889 261 460 . . 1726 150 . 4150 Core 1167 | . 73 139 . 104 . . 116 21 . 714 Absorbed by Shields . | . . . . . . . . . . . Ignored by Resistances 125 | . . . . . . . 54 60 . 11 Regen/Repaired (Parts) 157 | . . . . . . . 81 30 . 46 Core Remaining (%) 63 | 100 . 15 . . . 74 . . . . Volleys Fired 210 | 8 34 18 28 6 . 1 60 11 . 44 Largest 2 | 2 2 2 2 2 . 1 2 2 . 2 Hottest 90 | 70 70 85 90 45 . . 60 60 . 90 Shots Fired 347 | 16 68 32 49 11 . 1 88 22 . 60 Gun 306 | 16 68 28 29 11 . . 80 22 . 52 Cannon 29 | . . . 20 . . . 4 . . 5 Launcher 10 | . . 4 . . . . 4 . . 2 Special 2 | . . . . . . 1 . . . 1 Kinetic 271 | 8 62 21 28 11 . . 84 22 . 35 Thermal 44 | 8 6 7 1 . . . . . . 22 Explosive 10 | . . 4 . . . . 4 . . 2 Electromagnetic 20 | . . . 20 . . . . . . . Robot Hit Streak 14 | 4 8 5 6 7 . 8 11 4 . 14 Robot Miss Streak 7 | 3 3 5 4 1 . . 6 7 . 4 Penetration Max . | . . . . . . . . . . . Secondary Targets 4 | . . 2 . . . . 2 . . . Max Gunslinging Chain 1 | . . 1 . . . . 1 . . . Shots Hit Robots 295 | 8 39 14 30 27 1 1 72 11 . 92 Core Hits 156 | 4 15 36 13 4 1 . 46 4 . 33 Critical Kills 1 | . . . . . . . 1 . . . Critical Parts Destroyed 6 | . 1 . . 3 . . 1 1 . . Critical Strikes 11 | . 1 . 1 3 . . 2 1 . 3 Burn 3 | . . . . . . . . . . 3 Destroy 4 | . 1 . . . . . 2 1 . . Corrupt 1 | . . . 1 . . . . . . . Smash 3 | . . . . 3 . . . . . . Melee Attacks 149 | . . . . 22 4 . 46 3 3 71 Impact 28 | . . . . 22 4 . 2 . . . Slashing 121 | . . . . . . . 44 3 3 71 Piercing . | . . . . . . . . . . . Sneak Attacks 12 | . . . . 1 1 . 9 . . 1 Combat Hostiles . | . . . . . . . . . . . Follow-up Attacks 8 | . . . . . . . . . . 8 Damage Inflicted 9281 | 121 430 960 739 758 68 . 2681 259 . 3265 Guns 3442 | 121 430 186 271 167 . . 1178 259 . 830 Cannons 509 | . . . 385 . . . 53 . . 71 Explosions 1448 | . . 774 83 . . . 368 . . 223 Melee 3882 | . . . . 591 68 . 1082 . . 2141 Ramming . | . . . . . . . . . . . Kinetic 3019 | 46 379 158 271 167 . . 1231 259 . 508 Thermal 630 | 75 51 28 83 . . . . . . 393 Explosive 1334 | . . 774 . . . . 337 . . 223 Electromagnetic 416 | . . . 385 . . . 31 . . . Impact 850 | . . . . 591 68 . 191 . . . Slashing 3032 | . . . . . . . 891 . . 2141 Piercing . | . . . . . . . . . . . Highest Corruption 14 | . . . . . . 1 3 3 . 14 Average Corruption 6 | . . . . . . 1 3 2 . 13 Corruption Purged 3 | . . . . . . . . 3 . . Corruption Blocked . | . . . . . . . . . . . Effects 42 | . . . . . . . 4 15 . 23 Message Errors 11 | . . . . . . . 2 5 . 4 Matter Fused 9 | . . . . . . . 1 2 . 6 Heat Flow Errors 7 | . . . . . . . . 2 . 5 Energy Discharges 4 | . . . . . . . 1 2 . 1 Parts Rejected 3 | . . . . . . . . . . 3 Data Loss (minor) 2 | . . . . . . . . 1 . 1 Data Loss (major) 2 | . . . . . . . . 1 . 1 Misfires 1 | . . . . . . . . 1 . . Alerts 1 | . . . . . . . . 1 . . Misdirections 1 | . . . . . . . . . . 1 Weapon Failures 1 | . . . . . . . . . . 1 Overload Shots . | . . . . . . . . . . . Overflow Damage 808 | . . 23 41 153 . . 292 . . 299 Projectiles 26 | . . . 26 . . . . . . . Explosions 42 | . . 23 15 . . . . . . 4 Melee 740 | . . . . 153 . . 292 . . 295 Knockbacks 1 | . . . . 1 . . . . . . Impact 1 | . . . . 1 . . . . . . Kinetic . | . . . . . . . . . . . Secondary . | . . . . . . . . . . . Self-Inflicted Damage 211 | . . 71 35 . . . . . . 105 Shots 6 | . . 3 1 . . . . . . 2 Rammed . | . . . . . . . . . . . Targets Rammed . | . . . . . . . . . . . Kicked . | . . . . . . . . . . . Crushed . | . . . . . . . . . . . Highest Temperature 242 | 36 51 126 188 40 . . 96 242 . 202 Average Temperature 44 | 15 14 59 70 19 . . 26 63 . 57 Received Heat Transfer 1140 | . 120 38 108 195 . . 304 90 . 285 Siege Activations . | . . . . . . . . . . . Robots Corrupted 6 | . . . . 5 . . 1 . . . Combat Hostiles 4 | . . . . 4 . . . . . . Parts Fried 8 | . . . 2 6 . . . . . . Impact Corruptions 9 | . . . . 7 . . 2 . . . Robots Melted 1 | . . . . . . . . . . 1 Combat Hostiles . | . . . . . . . . . . . Parts Melted 5 | . 1 . . . . . 1 . . 3 Heat Transferred 1644 | 222 148 74 150 . . . . . . 1050 Parts Sabotaged . | . . . . . . . . . . . Parts Stolen . | . . . . . . . . . . . Parts Stripped . | . . . . . . . . . . . Power Chain Reactions 2 | . . . 2 . . . . . . . Alert | -11 -10 -10 -9 -9 -9 -9 -6 -6 -6 -6 ------- Run | Yrd Mat Min Mat Sto Rec Scr Fac Low Low Zio Peak Influence 771 | 15 294 54 193 301 52 . 771 . . . Initial 45 | . 9 24 . 44 45 . . . . . Average 167 | 6 175 3 87 132 41 . 244 . . . Maximum Alert Level 3 | . 1 . . 1 . . 3 . . . Low Security (%) 78 | 100 71 100 100 84 100 . 67 . . . Level 1 7 | . 28 . . 15 . . 3 . . . Level 2 10 | . . . . . . . 22 . . . Level 3 3 | . . . . . . . 7 . . . Level 4 . | . . . . . . . . . . . Level 5 . | . . . . . . . . . . . High Security . | . . . . . . . . . . . Max Security . | . . . . . . . . . . . Squads Dispatched 20 | . 2 1 . 1 . . 16 . . . Investigation 6 | . 1 1 . . . . 4 . . . Extermination 3 | . . . . . . . 3 . . . Reinforcement 6 | . 1 . . 1 . . 4 . . . Assault . | . . . . . . . . . . . Garrison 5 | . . . . . . . 5 . . . Intercept . | . . . . . . . . . . . Searches Triggered . | . . . . . . . . . . . Construction Impeded . | . . . . . . . . . . . Haulers Reinforced 1 | . . . . . . . 1 . . . Active Scanning Responses . | . . . . . . . . . . . Cargo Convoy Interrupts 1 | . . . . . . . 1 . . . Stealth | -11 -10 -10 -9 -9 -9 -9 -6 -6 -6 -6 --------- Run | Yrd Mat Min Mat Sto Rec Scr Fac Low Low Zio Distress Signals 7 | . 4 . 2 1 . . . . . . Communications Jammed 1 | . . . . . . . 1 . . . Distress Signals . | . . . . . . . . . . . Times Spotted 160 | . 17 21 13 11 . . 51 7 . 40 Peak Tracking Total 20 | . 5 20 4 3 . . 8 4 . 11 Tactical Retreats 8 | . 2 1 1 1 . . . . . 3 Traps | -11 -10 -10 -9 -9 -9 -9 -6 -6 -6 -6 ------- Run | Yrd Mat Min Mat Sto Rec Scr Fac Low Low Zio Traps Triggered 2 | . . . . . . . 2 . . . Indirectly . | . . . . . . . . . . . Trap Hack Attempts . | . . . . . . . . . . . Triggered . | . . . . . . . . . . . Disarmed . | . . . . . . . . . . . Reprogrammed . | . . . . . . . . . . . Reused 1 | . . . . . . . . . . 1 Traps Extracted . | . . . . . . . . . . . Installed 1 | . . . . . . . . . . 1 Triggered 1 | . . . . . . . 1 . . . Most Traps Carried 1 | . . . . . . 1 1 1 1 1 Machines | -11 -10 -10 -9 -9 -9 -9 -6 -6 -6 -6 ---------- Run | Yrd Mat Min Mat Sto Rec Scr Fac Low Low Zio Machines Disabled 7 | . . . . 1 . . 5 . . 1 Max in Single Turn 1 | . . . . 1 . . 1 . . 1 Machines Repaired . | . . . . . . . . . . . Machines Dismantled . | . . . . . . . . . . . Machines Sabotaged . | . . . . . . . . . . . Overloaded Fab Kills . | . . . . . . . . . . . Hacking | -11 -10 -10 -9 -9 -9 -9 -6 -6 -6 -6 --------- Run | Yrd Mat Min Mat Sto Rec Scr Fac Low Low Zio Machines Accessed 39 | . 7 1 6 3 3 5 14 . . . Terminals 22 | . 6 . 6 3 3 . 4 . . . Fabricators 5 | . . . . . . . 5 . . . Repair Stations 1 | . . . . . . . 1 . . . Recycling Units 5 | . 1 . . . . . 4 . . . Scanalyzers . | . . . . . . . . . . . Garrison Access . | . . . . . . . . . . . Total Hacks 96 | . 18 1 18 6 8 17 28 . . . Successful 61 | . 13 1 12 3 2 17 13 . . . Failed 35 | . 5 . 6 3 6 . 15 . . . Catastrophic 7 | . . . 1 1 . . 5 . . . Database Lockouts . | . . . . . . . . . . . Manual 57 | . 12 . 11 5 8 . 21 . . . Terminals 63 | . 17 . 18 6 8 . 14 . . . Fabricators 9 | . . . . . . . 9 . . . Repair Stations 1 | . . . . . . . 1 . . . Recycling Units 5 | . 1 . . . . . 4 . . . Scanalyzers . | . . . . . . . . . . . Garrison Access . | . . . . . . . . . . . Terminal Hacks 30 | . 3 1 5 . . 17 4 . . . Record 11 | . . . . . . 11 . . . . Robot Analysis 6 | . 1 . 1 . . 4 . . . . Open Door 2 | . . 1 . . . 1 . . . . Branch Access Points 2 | . . . 1 . . . 1 . . . Garrison Index 1 | . . . . . . . 1 . . . Unreport Threat 1 | . . . . . . . 1 . . . Locate Traps 1 | . 1 . . . . . . . . . Recall Investigation 1 | . . . 1 . . . . . . . Hauler Manifests 1 | . . . 1 . . . . . . . Zone Layout 3 | . 1 . 1 . . . 1 . . . Derelict Proto ID Bank 1 | . . . . . . 1 . . . . Fabricator Hacks . | . . . . . . . . . . . Repair Station Hacks . | . . . . . . . . . . . Recycling Unit Hacks . | . . . . . . . . . . . Scanalyzer . | . . . . . . . . . . . Garrison Access Hacks . | . . . . . . . . . . . Unauthorized Hacks 31 | . 10 . 7 3 2 . 9 . . . Terminals 25 | . 9 . 7 3 2 . 4 . . . Track 1 | . 1 . . . . . . . . . Botnet 9 | . 3 . 2 1 . . 3 . . . Skim 15 | . 5 . 5 2 2 . 1 . . . Fabricators . | . . . . . . . . . . . Repair Stations 5 | . . . . . . . 5 . . . Mechanics 1 | . . . . . . . 1 . . . Recycling Units 1 | . 1 . . . . . . . . . Tunnel 1 | . 1 . . . . . . . . . Scrapoids 4 | . . . . . . . 4 . . . Scanalyzers . | . . . . . . . . . . . Garrison Access . | . . . . . . . . . . . Data Cores Recovered . | . . . . . . . . . . . Used . | . . . . . . . . . . . Hacking Detections 28 | . 6 . 6 4 3 . 9 . . . Full Trace Events 1 | . . . 1 . . . . . . . Feedback Events . | . . . . . . . . . . . Feedback Blocked . | . . . . . . . . . . . Robot Schematics Acquired 4 | . . . . . . . . . . 4 Robots Built . | . . . . . . . . . . . Authchips . | . . . . . . . . . . . Time . | . . . . . . . . . . . Total Robot Build Rating . | . . . . . . . . . . . Part Schematics Acquired 15 | . . . . . . . . . . 15 Parts Built . | . . . . . . . . . . . Authchips . | . . . . . . . . . . . Time . | . . . . . . . . . . . Total Part Build Rating . | . . . . . . . . . . . Parts Repaired . | . . . . . . . . . . . Time . | . . . . . . . . . . . Parts Recycled . | . . . . . . . . . . . Recycled Matter . | . . . . . . . . . . . Retrieved Matter . | . . . . . . . . . . . Retrieved Components . | . . . . . . . . . . . Parts Scanalyzed . | . . . . . . . . . . . Part Schematics Acquired . | . . . . . . . . . . . Parts Damaged . | . . . . . . . . . . . Bothacking | -11 -10 -10 -9 -9 -9 -9 -6 -6 -6 -6 ------------ Run | Yrd Mat Min Mat Sto Rec Scr Fac Low Low Zio Used RIF Installer . | . . . . . . . . . . . Robots Hacked . | . . . . . . . . . . . Non-combat . | . . . . . . . . . . . Combat . | . . . . . . . . . . . Robot Hacks Applied . | . . . . . . . . . . . Relay Couplers Released . | . . . . . . . . . . . Fabnet Peak Effective % . | . . . . . . . . . . . Robots Rewired . | . . . . . . . . . . . Allies Hacked . | . . . . . . . . . . . Hacks Repelled . | . . . . . . . . . . . Allies | -11 -10 -10 -9 -9 -9 -9 -6 -6 -6 -6 -------- Run | Yrd Mat Min Mat Sto Rec Scr Fac Low Low Zio Total Allies 26 | . . . . . . 1 20 . . 5 Largest Group 6 | . . . . . . 1 6 4 1 6 Highest-Rated Group 219 | . . . . . . 76 219 146 61 210 Highest-Rated Ally 76 | . . . . . . 76 76 61 61 61 Total Orders 39 | . . . . . . . 16 7 16 . STAY 8 | . . . . . . . 7 1 . . FOLLOW 11 | . . . . . . . 9 1 1 . EXPLORE 13 | . . . . . . . . 3 10 . RETURN 7 | . . . . . . . . 2 5 . Ally Attacks 229 | . . . . . . . 163 55 . 11 Total Damage 6272 | . . . . . . . 4924 749 . 599 Kills 54 | . . . . . . . 43 7 . 4 Allies Corrupted . | . . . . . . . . . . . Allies Melted 1 | . . . . . . . . . . 1 Intel | -11 -10 -10 -9 -9 -9 -9 -6 -6 -6 -6 ------- Run | Yrd Mat Min Mat Sto Rec Scr Fac Low Low Zio Robot Analysis Total 6 | . 1 . 1 . . 4 . . . . Derelict Logs Recovered 7 | . . 1 . . . . . 2 3 1 Drone Launches 8 | . . . . . . . . 2 6 . Drone Recoveries 6 | . . . . . . . . 2 4 . Exploration | -11 -10 -10 -9 -9 -9 -9 -6 -6 -6 -6 ------------- Run | Yrd Mat Min Mat Sto Rec Scr Fac Low Low Zio Turns Passed 12718 | 130 840 303 540 503 479 4722 2363 994 331 1513 Spaces Moved 6857 | 58 410 133 235 180 192 2354 1495 588 229 983 Core 6 | 6 . . . . . . . . . . Treads 1979 | 52 303 . . 29 192 1403 . . . . Legs 52 | . . . . . . . . . . 52 Wheels 4820 | . 107 133 235 151 . 951 1495 588 229 931 Hover . | . . . . . . . . . . . Flight . | . . . . . . . . . . . Fastest Speed 50 | 50 140 140 175 175 243 116 110 102 102 102 Average Speed 154 | 148 154 172 185 194 243 193 121 109 102 114 Slowest Speed 490 | 160 160 175 190 243 243 246 131 110 102 490 Overloaded Moves . | . . . . . . . . . . . Propulsion Burnouts . | . . . . . . . . . . . Robots Hopped . | . . . . . . . . . . . Cave-ins Triggered 1 | . . . . . . . 1 . . . Exploration Rate (%) 52 | 4 59 40 27 28 43 93 39 82 72 90 Regions Visited 10 Branch Regions 7 Pre-discovered Areas 8 | . 1 1 2 . . 1 . . 1 2 Known Exits Taken 5 | . 1 1 1 . . . 1 . 1 . Unknown Exits Taken 5 | 1 . . . 1 1 1 . 1 . . Scrap Searched 11 | . . . . . . 5 . 2 2 2 Spaces Dug 42 | . . 7 . 2 2 . 27 . 3 1 Terrain Destroyed 78 | . . 24 10 2 2 . 36 . 3 1 Melee 35 | . . . . 2 2 . 27 . 3 1 Projectile 1 | . . . . . . . 1 . . . AOE 42 | . . 24 10 . . . 8 . . . Terrain Rammed . | . . . . . . . . . . . Walls Destroyed . | . . . . . . . . . . . Machines Disabled . | . . . . . . . . . . . Actions | -11 -10 -10 -9 -9 -9 -9 -6 -6 -6 -6 --------- Run | Yrd Mat Min Mat Sto Rec Scr Fac Low Low Zio Total 8539 | 83 555 173 295 282 198 2544 1928 926 321 1234 Wait 967 | . 82 10 10 59 . 100 242 294 87 83 Move 6847 | 57 409 132 234 179 191 2353 1494 587 228 983 Hop . | . . . . . . . . . . . Pick Up 111 | 10 15 3 11 3 3 36 12 10 . 8 Fast Attach 49 | 6 1 1 3 2 . 1 9 3 . 23 Attach 39 | 1 . 6 4 1 . 3 12 1 . 11 Detach 8 | . . . . . . . 5 1 . 2 Swap 57 | . 5 3 2 7 . 7 18 4 2 9 Drop 99 | 1 9 . 3 3 . 43 20 12 1 7 Fire 210 | 8 34 18 28 6 . 1 60 11 . 44 Melee 141 | . . . . 22 4 . 46 3 3 63 Ram . | . . . . . . . . . . . Kick . | . . . . . . . . . . . Crush . | . . . . . . . . . . . Escape Stasis . | . . . . . . . . . . . Rewire 10 | . . . . . . . 10 . . . Trap 1 | . . . . . . . . . . 1 Miscellaneous . | . . . . . . . . . . . Route ------- -11/Scrapyard -10/Materials (discovered 5 exits: *Mat x3 / *Min / Sub) -10/Mines (discovered 2 exits: *Mat / Sub) -9/Materials (discovered 7 exits: *Mat x3 / *Min x2 / *Sto x2) -9/Storage -9/Recycling -9/Scraptown (discovered 2 exits: *Fac x2) -6/Factory (discovered 3 exits: *Fac / *Low x2) -6/Lower Caves -6/Lower Caves (discovered 2 exits: Fac / *Zio) -6/Zion (discovered 1 exit: [*Pro]) History --------- Turn | Location | Event 5 | -11/Scrapyard | Discovered new exit (range 14) 131 | -11/Scrapyard | Entered Materials 311 | -10/Materials | Build established: Mutant 688 | -10/Materials | Learned Storage interactive machine intel 701 | -10/Materials | Discovered new exit (range 3) 720 | -10/Materials | Identified exit to Subcaves 742 | -10/Materials | Learned Storage terminal intel 753 | -10/Materials | Identified exit to Materials 754 | -10/Materials | Learned location of 2 exits from Mines 755 | -10/Materials | Identified exit to Mines 790 | -10/Materials | Loaded intel: 8 terminal locations 971 | -10/Materials | Entered Mines 972 | -10/Mines | Assembled infested the area 989 | -10/Mines | Core integrity fell below 50% 1003 | -10/Mines | Core integrity fell below 20% 1037 | -10/Mines | Destroyed 15 combat bots 1067 | -10/Mines | Lost 7 parts (1p3n1u2w) 1189 | -10/Mines | Met a Derelict shopkeep closing up shop 1274 | -10/Mines | Entered Materials 1274 | -9/Materials | Evolved 2 slots: Propulsion x1, Utility x1 1452 | -9/Materials | Discovered new exit (range 14) 1568 | -9/Materials | Identified exit to Mines 1568 | -9/Materials | Identified exit to Storage 1603 | -9/Materials | Identified exit to Materials 1612 | -9/Materials | Discovered exit to Materials (range 7) 1692 | -9/Materials | Loaded intel: 2 repair station locations 1814 | -9/Materials | Entered Storage 1815 | -9/Storage | Loaded intel: 20 interactive machine locations 1816 | -9/Storage | Loaded intel: 15 terminal locations 2221 | -9/Storage | Used back door to open Recycling access 2221 | -9/Storage | Discovered new exit (range 5) 2317 | -9/Storage | Entered Recycling 2737 | -9/Recycling | Scanned before Scraplab entrance 2771 | -9/Recycling | Entered Scraplab 2791 | -9/Recycling | Discovered new exit (range 2) 2796 | -9/Recycling | Entered Scraptown 2798 | -9/Scraptown | System corruption cleaned by C-Scrubber 2849 | -9/Scraptown | Heard Great Nut preacher, LISTEN AND RECITE! 3461 | -9/Scraptown | Discovered new exit (range 13) 3626 | -9/Scraptown | Visited Comm Corps 3734 | -9/Scraptown | Visited Cave Peace 3776 | -9/Scraptown | Visited Fellowship of the Rings 3813 | -9/Scraptown | Visited Assassins FH 3889 | -9/Scraptown | Visited UFD Registry 3889 | -9/Scraptown | Registered with UFD as "Quantumroller" 4047 | -9/Scraptown | Visited Awakened 4111 | -9/Scraptown | Visited CPS Storage 4126 | -9/Scraptown | Visited Spacefarers 4399 | -9/Scraptown | Visited Junk Repository 4501 | -9/Scraptown | Visited DA-N13 Charitable Foundation 4523 | -9/Scraptown | Found DCF Scrap (33 items) 4607 | -9/Scraptown | Visited Botcube Research 4624 | -9/Scraptown | Found Lrg. Botcube 5011 | -9/Scraptown | Visited Infowarlord's Domain 5028 | -9/Scraptown | Found Spectral Analyzer 5064 | -9/Scraptown | Visited Derelict Rescue Squad 5079 | -9/Scraptown | Found DRS Beacon 5122 | -9/Scraptown | Visited Research Penetration Think Tank 5218 | -9/Scraptown | Visited Sword Containment 5542 | -9/Scraptown | Visited Analyses Database 5601 | -9/Scraptown | Visited Science Guys 5717 | -9/Scraptown | Visited Junk Repository 6420 | -9/Scraptown | Found Scrap Suit 6576 | -9/Scraptown | Build established: Derelict-Mutant 6928 | -9/Scraptown | Lrg. Botcube activated 6964 | -9/Scraptown | Lrg. Botcube completed mutation into treaded form, armed with 4 guns. 7473 | -9/Scraptown | Found Scrap Suit 7510 | -9/Scraptown | Discovered new exit (range 3) 7518 | -9/Scraptown | Entered Factory 7518 | -6/Factory | Accompanied by 1 ally 7518 | -6/Factory | Evolved 6 slots: Propulsion x2, Utility x4 7637 | -6/Factory | Discovered new exit (range 5) 7851 | -6/Factory | Scrapoid reinforcements arrived 7881 | -6/Factory | Found Scrap Suit 7916 | -6/Factory | Lost 3 allies 8202 | -6/Factory | Spotted B-75 Beast 8740 | -6/Factory | Scrapoid reinforcements arrived 8752 | -6/Factory | Garrison activated, responded to threat 8775 | -6/Factory | Cargo convoy interrupted 8778 | -6/Factory | Lost 5 allies 8820 | -6/Factory | Identified exit to Lower Caves 8841 | -6/Factory | Found Prototype Device 8842 | -6/Factory | Lost 4 allies 8842 | -6/Factory | Identified Exp. Thermal Shield 8852 | -6/Factory | Found Exp. Terrain Scan Processor 8858 | -6/Factory | Found Prototype Device 8858 | -6/Factory | Identified Exp. Focal Shield 9052 | -6/Factory | Build established: Scavenger-Scrapper 9131 | -6/Factory | Garrison activated, responded to threat 9261 | -6/Factory | Scrapoid reinforcements arrived 9513 | -6/Factory | Found Scrap Suit 9649 | -6/Factory | Crushed by falling debris 9743 | -6/Factory | Scrapoids reinforcements arrived? 9862 | -6/Factory | Garrison activated, responded to threat 9881 | -6/Factory | Entered Lower Caves 9881 | -6/Lower Caves | Accompanied by 5 allies 10046 | -6/Lower Caves | Learned Factory emergency access door positions 10502 | -6/Lower Caves | Found Scrap Suit 10507 | -6/Lower Caves | Found Scrap Suit 10618 | -6/Lower Caves | Discovered new exit (range 9) 10875 | -6/Lower Caves | Entered another Lower Caves area 10875 | -6/Lower Caves | Accompanied by 1 ally 10884 | -6/Lower Caves | Identified exit to Zion 10924 | -6/Lower Caves | Identified exit to Factory 11070 | -6/Lower Caves | Learned location of Zion (-6) 11095 | -6/Lower Caves | Encountered a Warlord checkpoint 11206 | -6/Lower Caves | Entered Zion 11206 | -6/Zion | Accompanied by 1 ally 11226 | -6/Zion | Learned location of Warlord (-5) 11328 | -6/Zion | Found Prototype Hackware 11330 | -6/Zion | Found Prototype Processor 11330 | -6/Zion | Identified Exp. Core Analyzer 11347 | -6/Zion | Discovered new exit (range 14) 11789 | -6/Zion | Given the Hacking Drone Bay 11789 | -6/Zion | Found Prototype Device 11790 | -6/Zion | Identified Hacking Drone Bay 11939 | -6/Zion | Gained Derelict followers 12022 | -6/Zion | Turned away by Imprinter 12122 | -6/Zion | Warned about trapping Zion interior 12146 | -6/Zion | Attacked by Zionites 12175 | -6/Zion | System corruption reached 10% 12218 | -6/Zion | Lost 6 parts (1p1n2u2w) 12354 | -6/Zion | Core integrity fell below 50% 12394 | -6/Zion | Lost 8 parts (1p3n2u2w) 12511 | -6/Zion | Lost 4 parts (1p2n1w) 12532 | -6/Zion | Build established: Scavenger-Mutant 12542 | -6/Zion | Core integrity fell below 20% 12581 | -6/Zion | Lost 3 parts (1p2u) 12719 | -6/Zion | Destroyed by UG-NEL(z) with Makeshift Shrapnel Gun Last Messages --------------- AU-OUC(z) bursts out of the Twisted Machinery. UG-NEL(z) bursts out of the Twisted Machinery. 12707_ Companion Sword surprise attacks UG-NEL(z). YK-ZRT(z) bursts out of the Twisted Machinery. 12708_ UG-NEL(z) pulls a Mak. Shrapnel Gun out of the Twisted Machinery. 12709_ Ovr. Scrapsphere destroyed. 12709_ Mak. Coolant Network destroyed. 12709_ Mak. Power Source destroyed. 12710_ Companion Sword surprise attacks UG-NEL(z). 12710_ AU-OUC(z) pulls a Mak. Spear out of the Twisted Machinery. 12710_ YK-ZRT(z) pulls a Mak. Shrapnel Gun out of the Twisted Machinery. 12711_ Mak. Leg destroyed. 12711_ Mak. Leg severed. 12712_ 8S-1K1(z) destroyed. 12712_ Mak. Sword follow-up attack on 57-GWV(z). 12715_ AU-OUC(z) destroyed. 12717_ System corrupted: Heat flow error (+159). 12717_ Machine Analyzer destroyed. 12717_ 57-GWV(z) destroyed. 12719_ Mak. Leg destroyed. Map ----- +----------------------------------------------------+ | ??????????????????????????????#"" """" """ " | | ?????????????????????????????###" """ " | | ?????????????????????????????#""" """""" " | | ?????????????????????????????##"" ""#""" " | | ?????????????????????????????#""" ""##"" " | | ?????????????????????????????##" /"###"" " | | ?????????????????????????????#"" * "####"""" " | | ?????????????????????????????#"" /" ###""""" " | | ????????????????????????????###"" [ "#####"" " | | ????????????????????????????#"#"" """##""" " | | ????????????????????????#####""" ! ! "##""##" # | | ???????????????????????##" #" " ! "##""""" " | | ???????????????????????# # " / ""#""""" " | | ??????????????????????# #" """"" "" # | | ??????????????????????# #"" ! "" " | | ??????????????????????# #"" ] "" " | | ??????????????????????### #"" /= """ " | | ????????????????????????###"" /%"#" """"" " | | ????????????????##??###???##"" % ##""""""" " | | ????????????????#"###"#####"""" ""#""""##" " | | ?????????????????#""""##"""#"""" """""##""" " | | ???????#####???###""""""""""#"""" """"""" " | | ????"""""""""??#"#" """""""" """"" | | ????""""""""""?#""" *!= | | ????"" #""" =%/ / | | ??????"""" ##"" =@=""""""" """" | | ??????""""" %!/%"""##"" """"" " | | ??????""""" zz""###"""" """#" " | | ??????""""" / "##"""""" """"" " | | ??????"""" ###" ""#"""" "" "" " | | ????"" ??#"" ""#"" | | ????"""""""""???#"" """" "" "" | | ?????"""""""???###" """" """"""" | | ????????###????# " """" """#"" | | ???????????##### # ! #"" ""#"" | | ??????????## # ; ;#""" """" | | ??????????# =; """ "" | | ??????????# ! ; #"" "" """" | | ??????????# ! ! " #""" """"" """" | | ??????????## !# ; " #""" ""#"" """" | | ???????????# ###;;;;"""##""" """"" """"" " | | ?????#######* #########""##"" """" """"" " | | ????""""""" """ ""#""#"#"" """"" " | | ?????######" "######"#"####""" ""##"" | | ?????# " " " " #??""??##""" """#"""" | | ?????# " """ #??##???#"""" """""""" "" | | ?????#"""" " " #???????#"""" """ """""" | | ?????#""""" """""#???????#"##"" """ """ | | ?????#""""" """" #???????##?##"" "" | | ?????#" "" "" ""#???????????#""" | +----------------------------------------------------+ Best States ------------- Heat Dissipation 147 Energy Generation 18 Energy Capacity 310 Matter Stores 300 Matter Capacity 300 Sight Range 24 Terrain Scan Density 10 Jamming Range 12 Armor Coverage 450 Resistance: KI 30 Resistance: TH 30 Evasion (%) 40 Targeting Accuracy 6 Recoil Reduction 3 Matter Filtering 50 Item Schematics ----------------- Lgt. Fission Core | -6/Zion | Archive Tesla Rifle | -6/Zion | Archive EM Disruption Field | -6/Zion | Archive Adv. System Restoration Module | -6/Zion | Archive Antigrav System | -6/Zion | Archive Imp. Medium Treads | -6/Zion | Archive Adv. Thermal Generator | -6/Zion | Archive Phase Gun | -6/Zion | Archive Lgt. Angular Momentum Engine | -6/Zion | Archive Imp. Component Analysis Suite | -6/Zion | Archive Thermal Shield | -6/Zion | Archive Imp. Transmission Jammer | -6/Zion | Archive Stasis Canceller | -6/Zion | Archive Point Defense System | -6/Zion | Archive Proton Cannon | -6/Zion | Archive Robot Schematics ------------------ S-27 Virus | -6/Zion | Archive K-01 Serf | -6/Zion | Archive A-02 Transporter | -6/Zion | Archive Y-72 Warden | -6/Zion | Archive Fabricated ------------ Nothing Alien Tech Used ----------------- None Achievements -------------- None Challenges ------------ None Game ------ Seed NavigationChargeAccelerator Manual? 0 Play Time 02:21:47 Cumulative 410.7 hours Start 2025.01.13 @ 14:45:24 End 2025.01.13 @ 22:10:50 Sessions 3 Manual Loads 0 Difficulty Rogue Special Mode None Game No. 172 Rogue 172 Adventurer 0 Explorer 0 Win Type - Total 15 Types 13/0/1/1/0/0/0/0/0 Lore% 74 Gallery% 80 Achievement% 68 Wizard Run 0 Options --------- Layout 0 ASCII 0 Keyboard 0 Movement Numpad Keybinds 0 Fullscreen 1 Font 24/X11 Map View 76x50 Zoom Use 0% Tactical HUD 1 Map Filters NONE Filters NONE Steam 1 RUN: 3c85a26b-0bab-4f59-8739-17a90bbf4758